Workbook

Sheet Inicio
B2: Servicio de Telefonía Fija
B3: Plan de Expansión
B8: Fecha de publicación: noviembre de 2013
C14: Se presenta información relacionada con el Plan Anual de Expansión de los Concesionarios del Servicio de Telefonía Fija.
C16: El Plan Anual de Expansión determina el crecimiento de la red de un Concesionario a través de la medición de tres parámetros: (1) Urbanos (Instalación de Líneas Nuevas), (2) Rurales (Instalación de Teléfonos Públicos de Prepago) y (3) Servicio Público (Instalación de Cabinas Públicas Rurales).
C18: 1. Tabla Resumen de Metas y Cumplimientos de todos los Planes de Expansión de las operadoras de Telefonía Fija
C19: 2. Documentos que aprueban los Planes Anuales de Expansión
C20: 3. Definiciones de los parámetros del Plan de Expansión

Sheet Resumen
B2: Servicio de Telefonía Fija
B3: Plan de Expansión - Cumplimiento
B8: Fecha de publicación: noviembre de 2013
O9: 900384
A13: PLAN DE EXPANSIÓN DE TELEFONÍA FIJA - CUMPLIMIENTO
A15: No. | B15: PARÁMETROS | C15: UNIDAD | D15: AÑO | E15: CNT E.P. (ex-Andinatel) | F15: CNT E.P. (ex-Pacifictel) | G15: CNT E.P. | H15: ETAPA E.P. | I15: Linkotel S.A. | J15: Ecuador telecom S.A. | K15: SETEL S.A. | L15: Total por año | M15: Total acumulado | N15: Grado Crecimiento
A16: 1 | B16: Instalación de Abonados | C16: Líneas Nuevas | D16: 1998 | E16: 47170 | F16: 59029 | I16: * | L16: =SUM(E16:K16) -> 106199 | M16: =+L16 -> 106199
D17: 1999 | E17: 61914 | F17: 40046 | I17: * | L17: 101960 | M17: =+M16+L17 -> 208159 | N17: =+L17/M16 -> 0.9600843699
D18: 2000 | E18: 74806 | F18: 44214 | I18: * | L18: 119020 | M18: 327179 | N18: =+L18/M17 -> 0.5717744609
D19: 2001 | E19: 95992 | F19: 49494 | I19: * | L19: 145486 | M19: 472665 | N19: 0.4446679035
D20: 2002 | E20: 109152 | F20: 45386 | I20: * | L20: 154538 | M20: 627203 | N20: 0.3269503771
D21: 2003 | E21: 118262 | F21: 35268 | I21: * | L21: 153530 | M21: 780733 | N21: 0.2447851812
D22: 2004 | E22: 77703 | F22: 49515 | I22: * | L22: 127218 | M22: 907951 | N22: 0.1629468717
D23: 2005 | E23: 41465 | F23: 28865 | I23: 859 | L23: 71189 | M23: 979140 | N23: 0.07840621355
D24: 2006 | E24: 56664 | F24: 35614 | I24: 1700 | L24: 93978 | M24: 1073118 | N24: 0.09598014584
D25: 2007 | E25: 24593 | F25: 27166 | I25: 798 | L25: 52557 | M25: 1125675 | N25: 0.04897597468
D26: 2008 | E26: 107206 | F26: 5023 | I26: 1211 | L26: 113440 | M26: =+M25+L26 -> 1239115 | N26: =+L26/M25 -> 0.1007750905
D27: 2009 | G27: 78663 | I27: 293 | L27: 78956 | M27: =+M25+L27 -> 1204631 | N27: =+L27/M25 -> 0.0701410265
D28: 2010 | G28: 94414 | I28: 936 | J28: 8297 | L28: 103647
D29: 2011 | G29: 152830 | H29: 5338 | I29: 442 | J29: 35153 | K29: 10862
D30: 2012 | G30: 170248 | H30: 10054 | I30: 38 | J30: 41836 | K30: 12143
A31: 2 | B31: Instalación de Teléfonos Públicos de Prepago | C31: Aparatos | D31: 1998 | E31: 5790 | F31: 1110 | I31: * | L31: =SUM(E31:K31) -> 6900 | M31: =+L31 -> 6900
D32: 1999 | E32: 0 | F32: 400 | I32: * | L32: 400 | M32: =+M31+L32 -> 7300 | N32: =+L32/M31 -> 0.05797101449
D33: 2000 | E33: 0 | F33: 475 | I33: * | L33: 475 | M33: 7775 | N33: 0.06506849315
D34: 2001 | E34: 233 | F34: 450 | I34: * | L34: 683 | M34: 8458 | N34: 0.08784565916
D35: 2002 | E35: 2053 | F35: 296 | I35: * | L35: 2349 | M35: 10807 | N35: 0.2777252306
D36: 2003 | E36: 1835 | F36: 1109 | I36: * | L36: 2944 | M36: 13751 | N36: 0.2724160266
D37: 2004 | E37: 2684 | F37: 1787 | I37: * | L37: 4471 | M37: 18222 | N37: 0.3251399898
D38: 2005 | E38: 1187 | F38: 217 | I38: * | L38: 1404 | M38: 19626 | N38: 0.07704972012
D39: 2006 | E39: 410 | F39: 157 | I39: 10 | L39: 577 | M39: 20203 | N39: 0.02939977581
D40: 2007 | E40: 172 | F40: 254 | I40: 57 | L40: 483 | M40: 20686 | N40: 0.02390734049
D41: 2008 | E41: 534 | F41: 138 | I41: 34 | L41: 706 | M41: =+M40+L41 -> 21392 | N41: =+L41/M40 -> 0.03412936285
D42: 2009 | G42: 474 | I42: 0 | L42: 474 | M42: =+M40+L42 -> 21160 | N42: =+L42/M40 -> 0.02291404815
D43: 2010 | G43: 488 | I43: 0 | J43: 608 | L43: =SUM(E43:K43) -> 1096 | M43: =+M40+L43 -> 21782 | N43: =+L43/M40 -> 0.05298269361
D44: 2011 | G44: 824 | H44: 0 | I44: 0 | J44: 1783 | K44: 1417
D45: 2012 | G45: 1202 | H45: 0 | I45: 0 | J45: 2244 | K45: 1791
A46: 3 | B46: Instalación de Cabinas Públicas Rurales | C46: Poblaciones | D46: 1998 | E46: 81 | F46: 154 | I46: * | L46: 235 | M46: =+L46 -> 235
D47: 1999 | E47: 72 | F47: 139 | I47: * | L47: 211 | M47: =M46+L47 -> 446 | N47: 0.8978723404
D48: 2000 | E48: 86 | F48: 65 | I48: * | L48: 151 | M48: =M47+L48 -> 597 | N48: 0.3385650224
D49: 2001 | E49: 40 | F49: 75 | I49: * | L49: 115 | M49: 712 | N49: 0.1926298157
D50: 2002 | E50: 96 | F50: 287 | I50: * | L50: 383 | M50: 1095 | N50: 0.5379213483
D51: 2003 | E51: 55 | F51: 77 | I51: * | L51: 132 | M51: 1227 | N51: 0.1205479452
D52: 2004 | E52: 90 | F52: 91 | I52: * | L52: 181 | M52: 1408 | N52: 0.1475142624
D53: 2005 | E53: 83 | F53: 33 | I53: * | L53: 116 | M53: 1524 | N53: 0.08238636364
D54: 2006 | E54: 22 | F54: 13 | I54: 2 | L54: 37 | M54: 1561 | N54: 0.02427821522
D55: 2007 | E55: 11 | F55: 8 | I55: 22 | L55: 41 | M55: 1602 | N55: 0.02626521461
D56: 2008 | E56: 11 | F56: N.R. | I56: 2 | L56: 13 | M56: =M55+L56 -> 1615 | N56: =+L56/M55 -> 0.008114856429
D57: 2009 | I57: 0 | L57: =SUM(E57:K57) -> 0 | M57: =M54+L57 -> 1561 | N57: =+L57/M54 -> 0
D58: 2010 | I58: 1 | L58: =SUM(E58:K58) -> 1
D59: 2011 | I59: 0 | L59: =SUM(E59:K59) -> 0 | M59: =M55+L59 -> 1602 | N59: =+L59/M55 -> 0
D60: 2012 | I60: 0 | L60: 0 | M60: =M56+L60 -> 1615 | N60: =+L60/M56 -> 0
A63: PLAN DE EXPANSIÓN DE TELEFONÍA FIJA - METAS
A65: No. | B65: PARÁMETROS | C65: UNIDAD | D65: AÑO | E65: CNT E.P. (ex-Andinatel) | F65: CNT E.P. (ex-Pacifictel) | G65: CNT E.P. | H65: ETAPA E.P. | I65: Linkotel S.A. | J65: Ecuador telecom S.A. | K65: SETEL S.A. | L65: Total por año | M65: Total acumulado
A66: 1 | B66: Instalación de Abonados | C66: Líneas Nuevas | D66: 1998 | E66: 48000 | F66: 55000 | I66: * | L66: =SUM(E66:K66) -> 103000 | M66: =+L66 -> 103000
D67: 1999 | E67: 42000 | F67: 42000 | I67: * | L67: 84000 | M67: =+M66+L67 -> 187000
D68: 2000 | E68: 42000 | F68: 42000 | I68: * | L68: 84000 | M68: 271000
D69: 2001 | E69: 90000 | F69: 90000 | I69: * | L69: 180000 | M69: 451000
D70: 2002 | E70: 111400 | F70: 111400 | I70: * | L70: 222800 | M70: 673800
D71: 2003 | E71: 80000 | F71: 60000 | I71: * | L71: 140000 | M71: 813800
D72: 2004 | E72: 60000 | F72: 70000 | I72: * | L72: 130000 | M72: 943800
D73: 2005 | E73: 50000 | F73: 5000 | I73: 850 | L73: 55850 | M73: 999650
D74: 2006 | E74: 40000 | F74: 25000 | I74: 1700 | L74: 66700 | M74: 1066350
D75: 2007 | E75: 13500 | F75: 30000 | I75: =100+150+200+250 -> 700 | L75: 44200 | M75: 1110550
D76: 2008 | E76: 60000 | F76: 36000 | I76: 1400 | L76: 97400 | M76: 1207950
D77: 2009 | G77: 40000 | I77: 1400 | L77: 41400 | M77: 1249350
D78: 2010 | G78: 60000 | I78: 2075 | J78: 6991 | L78: 69066 | M78: 1318416
D79: 2011 | G79: 80000 | H79: 3000 | I79: 2650 | J79: 21897 | K79: 10750 | L79: 118297 | M79: =+M77+L79 -> 1367647
D80: 2012 | G80: 100000 | H80: 5000 | I80: 2650 | J80: 21897 | K80: 14340 | L80: =SUM(E80:K80) -> 143887 | M80: =+M77+L80 -> 1393237
D81: 2013 | G81: 100000 | H81: 7000 | I81: 2650 | J81: 40153 | K81: 25000 | L81: 174803 | M81: =+M78+L81 -> 1493219
A82: 2 | B82: Instalación de Teléfonos Públicos de Prepago | C82: Aparatos | D82: 1998 | E82: 3000 | F82: 3000 | I82: * | L82: 6000 | M82: =+L82 -> 6000
D83: 1999 | E83: 400 | F83: 400 | I83: * | L83: 800 | M83: =+M82+L83 -> 6800
D84: 2000 | E84: 500 | F84: 500 | I84: * | L84: 1000 | M84: 7800
D85: 2001 | E85: 800 | F85: 800 | I85: * | L85: 1600 | M85: 9400
D86: 2002 | E86: 2000 | F86: 10000 | I86: * | L86: 12000 | M86: 21400
D87: 2003 | E87: 2000 | F87: 1008 | I87: * | L87: 3008 | M87: 24408
D88: 2004 | E88: 1500 | F88: 2000 | I88: * | L88: 3500 | M88: 27908
D89: 2005 | E89: 1000 | F89: 500 | I89: * | L89: 1500 | M89: 29408
D90: 2006 | E90: 300 | F90: 500 | I90: 10 | L90: 810 | M90: 30218
D91: 2007 | E91: 100 | F91: 16 | I91: =11+13+15+17 -> 56 | L91: 172 | M91: 30390
D92: 2008 | E92: 150 | F92: 240 | I92: 48 | L92: 438 | M92: 30828
D93: 2009 | G93: 300 | I93: 48 | L93: 348 | M93: =+M92+L93 -> 31176
D94: 2010 | G94: 390 | I94: 52 | J94: 70 | L94: 512 | M94: =+M93+L94 -> 31688
D95: 2011 | G95: 390 | H95: 0 | I95: 52 | J95: 219 | K95: 107 | L95: 768 | M95: =+M94+L95 -> 32456
D96: 2012 | G96: 400 | H96: 0 | I96: 52 | J96: 219 | K96: 143 | L96: =SUM(E96:K96) -> 814 | M96: =+M94+L96 -> 32502
D97: 2013 | G97: 200 | H97: 0 | I97: 52 | J97: 400 | K97: 250 | L97: 902 | M97: =+M95+L97 -> 33358
A98: 3 | B98: Instalación de Cabinas Públicas Rurales | C98: Poblaciones | D98: 1998 | E98: 50 | F98: 50 | I98: * | L98: 100 | M98: =+L98 -> 100
D99: 1999 | E99: 55 | F99: 55 | I99: * | L99: 110 | M99: =+M98+L99 -> 210
D100: 2000 | E100: 55 | F100: 55 | I100: * | L100: 110 | M100: 320
D101: 2001 | E101: 50 | F101: 50 | I101: * | L101: 100 | M101: 420
D102: 2002 | E102: 90 | F102: 90 | I102: * | L102: 180 | M102: 600
D103: 2003 | E103: 40 | F103: 40 | I103: * | L103: 80 | M103: 680
D104: 2004 | E104: 20 | F104: 40 | I104: * | L104: 60 | M104: 740
D105: 2005 | E105: 20 | F105: 40 | I105: * | L105: 60 | M105: 800
D106: 2006 | E106: 15 | F106: 40 | I106: 2 | L106: 57 | M106: 857
D107: 2007 | E107: 5 | F107: 20 | I107: 20 | L107: 45 | M107: 902
D108: 2008 | E108: 8 | F108: 20 | I108: 4 | L108: 32 | M108: 934
D109: 2009 | G109: 0 | I109: 4 | L109: 4 | M109: =M108+L109 -> 938
D110: 2010 | G110: 0 | I110: 4 | L110: 4 | M110: =M109+L110 -> 942
D111: 2011 | G111: 0 | H111: 0 | I111: 4 | J111: 0 | K111: 0 | L111: 4 | M111: =M110+L111 -> 946
D112: 2012 | G112: 0 | H112: 0 | I112: 4 | J112: 0 | K112: 0 | L112: =SUM(E112:K112) -> 4 | M112: =M110+L112 -> 946
D113: 2013 | G113: 0 | H113: 0 | I113: 4 | J113: 0 | K113: 0 | L113: 4 | M113: =M111+L113 -> 950
A115: Notas:
A117: 1. META: Valores a ser alcanzados por el Concesionario, mismos que son aprobados por el CONATEL mediante Resoluciones emitidas anualmente.
A118: 2. CUMPLIMIENTO: Valores alcanzados por el Concesionario y reportados por la Superintendencia de Telecomunicaciones
A119: 3. Para CUMPLIMIENTO del año 2008 de la CNT (Pacifictel) se consideraron los cumplimientos del I y II trimestres de 2008
A120: 4. * Periodos en los cuales estas empresas no proveían servicio
A121: 5. ** Por definir
A122: 6. N.R.: dato no reportado

Sheet Resoluciones
B2: Servicio de Telefonía Fija
B3: Plan de Expansión - Documentos
B8: Fecha de publicación: noviembre de 2013
A12: AÑO | B12: CNT S.A. (ex-Andinatel) | C12: CNT S.A. (ex-Pacifictel) | D12: Linkotel S.A. | E12: Setel S.A.** | F12: Ecuadortelecom S.A.** | G12: Etapa E.P. / Etapatelecom S.A.** | H12: Global Crossing S.A.** | I12: Grupo Coripar S.A.**
A13: 1999 | B13: 273-20-CONATEL-99 (17-Ago-99) | C13: 273-20-CONATEL-99 (17-Ago-99) | D13: * | E13: * | F13: * | G13: * | H13: * | I13: *
A14: 2000 | B14: 055-04-CONATEL-2000 (21-Mar-00) | C14: 055-04-CONATEL-2000 (21-Mar-00) | D14: * | E14: * | F14: * | G14: * | H14: * | I14: *
A15: 2001 | B15: 123-04-CONATEL-2001 (16-Mar-01) | C15: 123-04-CONATEL-2001 (16-Mar-01) | D15: * | E15: * | F15: * | G15: * | H15: * | I15: *
A16: 2002 | B16: 004-01-CONATEL-2002 (10-Ene-02) | C16: 004-01-CONATEL-2002 (10-Ene-02) | D16: * | E16: * | F16: * | G16: * | H16: * | I16: *
A17: 2003 | B17: 05-04-CONATEL-2003 (11-Feb-03) | C17: 06-04-CONATEL-2003 (11-Feb-03) 723-29-CONATEL-2003 (2-Dic-03) Modificación | D17: * | E17: * | F17: * | G17: * | H17: * | I17: *
A18: 2004 | B18: 095-06-CONATEL-2004 (6-Abr-04) | C18: 096-06-CONATEL-2004 (6-Abr-04) | D18: * | E18: * | F18: * | G18: * | H18: * | I18: *
A19: 2005 | B19: 04-01-CONATEL-2005 (11-Ene-05) | C19: 05-01-CONATEL-2005 (11-Ene-05) | D19: 74-02-CONATEL-2005 (25-Ene-05) | E19: * | F19: Obligación de instalar mínimo 50.000 líneas de central a nivel nacional dentro de los primeros 5 años (contados a partir del 13 junio de 2005) | G19: Obligación de instalar mínimo 50.000 líneas de central a nivel nacional dentro de los primeros 5 años (contados a partir del 2 junio de 2005) | H19: * | I19: *
A20: 2006 | B20: 273-11-CONATEL-2006 (25-Abr-06) | C20: 272-11-CONATEL-2006 (25-Abr-06) | D20: 460-19-CONATEL-2006 (17-Ago-06) Guayaquil 672-33-CONATEL-2006 (14-Dic-06) Manta | E20: Obligación de instalar mínimo 50.000 líneas de central a nivel nacional dentro de los primeros 5 años (contados a partir del 12 abril 2006) | H20: Obligación de instalar mínimo 5.000 líneas en el área concesionada (contados a partir del 26 de marzo de 2008) | I20: *
A21: 2007 | B21: 448-28-CONATEL-2007 (11-Oct-07) | C21: 041-04-CONATEL-2007 (9-Feb-07) | D21: 040-04-CONATEL-2007 (9-Feb-07) | I21: Obligación de instalar mínimo 5.000 líneas en el área concesionada (contados a partir del 5 de marzo de 2009)
A22: 2008 | B22: 257-08-CONATEL-2008 (13-May-08) | C22: 258-08-CONATEL-2008 (13-May-08) | D22: 259-08-CONATEL-2008 (13-May-08)
A23: 2009 | B23: 441-16-CONATEL-2009 (17-Dic-2009) | D23: 161-06-CONATEL-2009 (20-Abr-09)
A24: 2010 | B24: TEL-557-18-CONATEL-2010 (24-Sep-2010) | D24: TEL-558-18-CONATEL-2010 (24-Sep-2010)
A25: 2011 | B25: TEL-005-01-CONATEL-2011 (14-Ene-2011) | D25: TEL-006-01-CONATEL-2011 (14-Ene-2011) | E25: TEL-368-08-CONATEL-2011 (28-abril-2011) | F25: TEL-007-01-CONATEL-2011 (14-Ene-2011)
A26: 2012 | B26: TEL-032-02-CONATEL-2012 (25-Ene-2012) | D26: TEL-034-02-CONATEL-2012 (25-Ene-2012) | E26: TEL-036-02-CONATEL-2012 (25-Ene-2012) | F26: TEL-035-02-CONATEL-2012 (25-Ene-2012) | G26: TEL-033-02-CONATEL-2012 (25-Ene-2012)
A27: 2013 | B27: TEL-879-30-CONATEL-2012 (18-Dic-2012) | D27: TEL-881-30-CONATEL-2012 (18-Dic-2012) | E27: TEL-882-30-CONATEL-2012 (18-Dic-2012) | F27: TEL-883-30-CONATEL-2012 (18-Dic-2012) | G27: TEL-880-30-CONATEL-2012 (18-Dic-2012) | H27: TEL-884-30-CONATEL-2012 (18-Dic-2012)
A29: Notas:
A31: 1. * Periodos en los cuales estas empresas no proveían servicio
A32: 2. ** En los respectivos Contratos de Concesión se establecen los mecanismos de presentación, revisión y aprobación del Plan de Expansión de los servicios concedidos.

Sheet Definiciones
A2: Servicio de Telefonía Fija
A3: Plan de Expansión - Documentos | B3: Definiciones de los parámetros de los Planes de Expansión
A8: Fecha de publicación: noviembre de 2013
A12: No. | B12: PARÁMETRO | C12: DEFINICIÓN
A13: 1. | B13: Instalación de Abonados | C13: Número de líneas nuevas instaladas por un operador en un determinado periodo de tiempo
A14: 2. | B14: Instalación de teléfonos públicos prepago | C14: Número de teléfonos públicos instalados por un operador en un tiempo determinado
A15: 3. | B15: Instalación de cabinas públicas rurales | C15: Número de poblaciones en las que un operador ha instalado cabinas públicas rurales, en un tiempo determinado.

Sheet Gráfico1
B2: Servicio de Telefonía Fija
B3: Instalación Abonados CNT E. P. (ex ANDINATEL)
B8: Fecha de publicación: noviembre de 2013

Sheet Gráfico2
B2: Servicio de Telefonía Fija
B3: Instalación Abonados CNT E. P. (ex PACIFICTEL)
B8: Fecha de publicación: noviembre de 2013

Sheet Gráfico3
B2: Servicio de Telefonía Fija
B3: Instalación Abonados CNT E. P.
B8: Fecha de publicación: noviembre de 2013

Sheet Gráfico4
B2: Servicio de Telefonía Fija
B3: Instalación Abonados LINKOTEL S.A.
B8: Fecha de publicación: noviembre de 2013

Sheet Gráfico5
B2: Servicio de Telefonía Fija
B3: Instalación Abonados Operadoras Fijas
B8: Fecha de publicación: noviembre de 2013

Sheet Gráfico6
B2: Servicio de Telefonía Fija
B3: Instalación Abonados - Grado Crecimiento
B8: Fecha de publicación: noviembre de 2013

Sheet 1.Abonados
B2: Servicio de Telefonía Fija
B3: Instalación Abonados - Comparativo entre operadores
B8: Fecha de publicación: noviembre de 2013

Sheet Gráfico1 TPP
B2: Servicio de Telefonía Fija
B3: Instalación de Teléfonos Públicos de Prepago CNT E.P. (ex-Andinatel)
B8: Fecha de publicación: noviembre de 2013

Sheet Gráfico2 TTP
B2: Servicio de Telefonía Fija
B3: Instalación de Teléfonos Públicos de Prepago CNT E.P. (ex-Pacifictel)
B8: Fecha de publicación: noviembre de 2013

Sheet Gráfico3 TPP
B2: Servicio de Telefonía Fija
B3: Instalación de Teléfonos Públicos de Prepago CNT E.P.
B8: Fecha de publicación: noviembre de 2013

Sheet Gráfico4 TPP
B2: Servicio de Telefonía Fija
B3: Instalación de Teléfonos Públicos de Prepago LINKOTEL S.A.
B8: Fecha de publicación: noviembre de 2013

Sheet Gráfico5 TPP
B2: Servicio de Telefonía Fija
B3: Instalación Total de Teléfonos Públicos de Prepago
B8: Fecha de publicación: noviembre de 2013

Sheet Gráfico6 TPP
B2: Servicio de Telefonía Fija
B3: Instalación de Teléfonos Públicos de Prepago - Grado Crecimiento
B8: Fecha de publicación: noviembre de 2013

Sheet 2.TelPubpre
B2: Servicio de Telefonía Fija
B3: Instalación Teléfonos Público Prepago - Comparativo entre operadores
B8: Fecha de publicación: noviembre de 2013

Sheet Gráfico1 CPR
B2: Servicio de Telefonía Fija
B3: Instalación de Cabinas Públicas Rurales CNT E.P. (ex-Andinatel)
B8: Fecha de publicación: noviembre de 2013

Sheet Gráfico2 CPR
B2: Servicio de Telefonía Fija
B3: Instalación de Cabinas Públicas Rurales CNT E.P. (ex-Pacifictel)
B8: Fecha de publicación: noviembre de 2013

Sheet Gráfico3 CPR
B2: Servicio de Telefonía Fija
B3: Instalación de Cabinas Públicas Rurales LINKOTEL S.A.
B8: Fecha de publicación: noviembre de 2013

Sheet Gráfico4 CPR
B2: Servicio de Telefonía Fija
B3: Instalación Total de Cabinas Públicas Rurales
B8: Fecha de publicación: noviembre de 2013

Sheet Gráfico5 CPR
B2: Servicio de Telefonía Fija
B3: Instalación de Cabinas Públicas Rurales - Grado Crecimiento
B8: Fecha de publicación: noviembre de 2013

Sheet 3. CabpurRur
B2: Servicio de Telefonía Fija
B3: Instalación Cabinas Públicas Rurales - Comparativo entre operadores
B8: Fecha de publicación: noviembre de 2013
